bitfinex/quotes_ETHUSD_20241203
["timestamp","ask_amount","ask_price","bid_price","bid_amount"]
[1733250234784,3.15468537,3574.8,3573.4,0.13922662]
[1733250234785,6.42318959,3574.3,3573.4,0.13922662]
[1733250235078,1.22391006,3574.2,3573.4,0.13922662]
[1733250235255,0.54398638,3574.1,3573.4,0.13922662]
[1733250235453,0.80536401,3574.0,3573.4,0.13922662]
[1733250235652,0.47071568,3573.9,3573.4,0.13922662]
[1733250235881,0.20922553,3573.8,3573.4,0.43300228]
[1733250236176,0.03993502,3573.9,3573.4,0.43300228]
[1733250236177,0.03993502,3573.9,3573.5,0.7852]
[1733250236353,0.03986961,3573.7,3573.5,0.7852]
[1733250236555,0.29171166,3574.0,3573.5,0.7852]
[1733250236879,0.24872279,3573.9,3573.5,0.7852]
[1733250237189,0.03963903,3573.9,3573.5,1.18686423]
[1733250238350,0.03963903,3573.9,3573.5,0.7852]
[1733250238545,0.29171166,3574.0,3573.5,0.7852]
[1733250238852,0.24846146,3573.9,3573.4,0.13922662]
[1733250239189,0.20900925,3573.8,3573.4,0.13922662]
[1733250239351,0.20900925,3573.7,3573.4,0.13922662]
[1733250239687,0.6261035,3574.0,3573.4,0.13922662]
[1733250239688,0.03974643,3573.6,3573.4,0.13922662]
[1733250240055,0.26119182,3573.9,3573.4,0.13922662]
[1733250240389,0.47014535,3573.8,3573.4,0.13922662]
[1733250240590,0.20895353,3573.7,3573.5,2.79836]
[1733250240805,0.26117472,3573.9,3573.4,0.43300628]
[1733250240976,0.20893638,3573.8,3573.4,0.13922662]
[1733250241301,0.29171166,3574.0,3573.4,0.13922662]
[1733250241302,0.2611766,3573.9,3573.5,0.7852]
[1733250241453,0.29171166,3574.0,3573.7,2.79817]
[1733250241975,0.20889814,3573.9,3573.5,3.58355]
[1733250242161,0.29171166,3574.0,3573.7,2.79819]
[1733250242363,0.20888198,3573.9,3573.7,3.17045166]
[1733250242565,0.29171166,3574.0,3573.7,3.17045166]
[1733250242754,0.29171166,3574.0,3573.4,0.13922662]
[1733250242755,3.11169791,3574.0,3573.4,0.13922662]
[1733250243096,0.84255917,3573.9,3573.4,0.13922662]
[1733250243250,0.8043852,3573.8,3573.4,0.13922662]
[1733250243590,0.46999336,3573.7,3573.4,0.13922662]
[1733250243799,0.20888572,3573.6,3573.4,0.13922662]
[1733250243997,0.03815452,3573.7,3573.4,0.13922662]
[1733250244154,0.03699611,3573.6,3573.4,0.13922662]
[1733250244497,0.26104709,3573.8,3573.4,0.13922662]
[1733250244649,0.03698017,3573.5,3573.4,0.13922662]
[1733250244855,0.26105219,3573.8,3573.4,0.13922662]
[1733250245055,0.03677252,3573.5,3573.4,0.13922662]
[1733250245679,3.05918809,3573.8,3573.4,0.13922662]
[1733250245876,0.03671332,3573.5,3573.4,0.13922662]
[1733250246062,3.08972166,3574.0,3573.4,0.13922662]
[1733250246268,0.03676512,3573.5,3573.4,0.13922662]
[1733250246506,0.26102117,3573.8,3573.4,0.13922662]
[1733250246790,0.20883063,3573.7,3573.4,0.13922662]
[1733250246951,0.20883063,3573.6,3573.4,0.13922662]
[1733250247156,0.03679281,3573.7,3573.4,0.13922662]
[1733250247356,0.26102117,3573.9,3573.4,0.13922662]
[1733250247554,0.2088292,3573.8,3573.4,0.13922662]
[1733250247787,0.2088292,3573.7,3573.4,0.13922662]
[1733250247990,0.03673876,3573.7,3573.4,0.13922662]
[1733250248196,0.29171166,3574.0,3573.4,0.13922662]
[1733250248524,0.03672701,3573.6,3573.4,0.13922662]
[1733250248677,0.29171166,3574.0,3573.4,3.75826662]
[1733250249004,0.4699116,3573.9,3573.4,4.05204828]
[1733250249154,0.2088496,3573.8,3573.4,4.05204828]
[1733250249356,0.24558004,3573.7,3573.4,1.25360828]
[1733250249561,0.29171166,3574.0,3573.6,2.79829]
[1733250249800,0.20889436,3573.9,3573.6,2.79829]
[1733250249962,0.20889436,3573.8,3573.4,1.25360828]
[1733250250162,0.29171166,3574.0,3573.4,1.25360828]
[1733250250358,0.03673044,3573.7,3573.4,1.25360828]
[1733250250587,0.29171166,3574.0,3573.4,1.25360828]
[1733250250588,0.29171166,3574.0,3573.5,2.7983]
[1733250250788,0.03672309,3573.6,3573.5,2.7983]
[1733250251012,0.29171166,3574.0,3573.5,3.20349083]
[1733250251202,0.03672309,3573.6,3573.5,3.20349083]
[1733250251517,0.29171166,3574.0,3573.5,3.20349083]
[1733250251653,0.47067993,3573.9,3573.5,3.20349083]
[1733250251860,0.20919108,3573.8,3573.5,3.20349083]
[1733250252056,0.20919108,3573.7,3573.6,3.12903247]
[1733250252290,0.29171166,3574.0,3573.8,2.79812]
[1733250252490,0.20931116,3573.9,3573.8,2.79812]
[1733250252736,0.20931116,3573.9,3573.8,3.54922]
[1733250253035,0.20931116,3573.9,3573.7,2.81998625]
[1733250253036,0.29141776,3574.7,3574.5,0.7511]
[1733250253243,0.80572122,3574.6,3574.5,3.54869]
[1733250253709,0.47087604,3574.6,3574.5,3.54869]
[1733250254390,0.47087604,3574.6,3574.5,0.7511]
[1733250254924,0.47085337,3574.6,3574.5,0.7511]
[1733250255103,0.20927824,3574.6,3574.5,0.7511]
[1733250257711,0.20927824,3574.6,3573.8,3.0]
[1733250257915,0.20927824,3574.5,3573.8,3.6108]
[1733250258119,0.29141776,3574.7,3573.8,3.6108]
[1733250258120,0.20927824,3574.4,3573.8,0.8127]
[1733250258298,0.20927824,3574.3,3573.8,0.8127]
[1733250258500,0.20927824,3574.2,3574.0,2.79796]
[1733250258714,0.59635193,3574.6,3574.0,2.79796]
[1733250258939,0.59635193,3574.6,3573.5,1.21789083]
[1733250258940,0.33480186,3574.5,3573.5,1.21789083]
[1733250259151,0.20925116,3574.4,3573.5,1.21789083]
[1733250259458,0.24412271,3574.3,3574.2,0.05046767]
[1733250259619,0.84053485,3574.3,3574.2,0.05046767]
[1733250259828,0.24412271,3574.3,3574.2,0.05046767]
[1733250260949,0.84057066,3574.3,3574.2,0.05046767]
[1733250261859,0.84063949,3574.3,3574.2,0.05046767]
[1733250265318,0.84073048,3574.3,3574.2,0.05046767]
[1733250265560,0.84073048,3574.3,3574.2,0.80106767]
[1733250265918,0.24416692,3574.3,3574.2,0.80106767]
[1733250266858,0.24410902,3574.3,3574.2,3.59888767]
[1733250267032,0.03481365,3574.3,3574.2,3.59888767]
[1733250267230,0.29141776,3574.7,3574.2,3.59888767]
[1733250267441,0.20929571,3574.6,3574.4,2.79759]
[1733250267671,0.20929571,3574.5,3574.4,2.79759]
[1733250267835,0.20929571,3574.5,3574.4,3.71923639]
[1733250268239,0.29141776,3574.7,3574.4,3.71923639]
[1733250268240,0.29141776,3574.7,3574.4,0.92164639]
[1733250268574,0.29141776,3574.7,3574.6,2.79751]
[1733250268756,0.50066958,3574.7,3574.6,2.79751]
[1733250269071,0.5006698,3574.7,3574.6,2.79751]
[1733250269271,0.5006698,3574.7,3574.4,0.92164639]
[1733250269474,0.5006698,3574.7,3574.3,2.79775]
[1733250269475,0.20925204,3574.6,3574.3,2.79775]
[1733250269770,0.20925204,3574.5,3574.3,2.79775]
[1733250269946,0.29141776,3574.7,3574.3,2.79775]
[1733250270282,0.2446523,3574.6,3574.3,2.79775]
[1733250270430,0.20923814,3574.5,3574.3,2.79775]
[1733250270636,0.29141776,3574.7,3574.3,2.79775]
[1733250270859,0.03539069,3574.4,3574.3,2.79775]
[1733250271058,0.29141776,3574.7,3574.3,6.71942739]
[1733250271233,0.20922708,3574.6,3574.3,6.71942739]
[1733250271435,0.20922708,3574.5,3574.3,6.71942739]
[1733250271679,0.29141776,3574.7,3574.3,5.79775]
[1733250271835,0.03539069,3574.4,3574.3,5.79775]
[1733250272037,0.29141776,3574.7,3574.3,3.0]
[1733250272263,0.03534685,3574.4,3574.2,0.05046767]
[1733250272446,0.29141776,3574.7,3574.2,0.05046767]
[1733250272447,0.2092191,3574.3,3574.2,0.05046767]
[1733250272775,0.47077303,3574.3,3574.2,0.05046767]
[1733250272933,0.50607971,3574.3,3574.2,0.05046767]
[1733250273133,0.84087619,3574.3,3574.2,0.05046767]
[1733250275882,0.84118143,3574.3,3574.2,0.05046767]
[1733250279480,0.84202271,3574.3,3574.2,0.05046767]
[1733250279790,0.63247831,3574.3,3574.2,0.05046767]
[1733250280098,0.84201222,3574.3,3574.2,0.05046767]
[1733250283101,3.77989973,3574.3,3574.2,0.05046767]
[1733250283266,4.6306784,3574.3,3574.2,0.05046767]
[1733250284289,4.91005694,3574.3,3574.2,0.05046767]
[1733250284464,4.6306784,3574.3,3574.2,0.05046767]
[1733250285667,2.79837,3573.5,3573.4,0.13922662]
[1733250285902,4.16446151,3573.5,3573.4,0.13922662]
[1733250286151,4.19905238,3573.5,3573.4,0.13922662]
[1733250286472,4.05859787,3573.5,3573.4,0.13922662]
[1733250287003,1.26022787,3573.5,3573.4,0.13922662]
[1733250287301,4.50456663,3573.5,3573.4,0.13922662]
[1733250287603,4.08558273,3573.5,3573.4,0.13922662]
[1733250288097,4.50456663,3573.5,3573.4,0.13922662]
[1733250288313,7.63558273,3573.5,3573.4,0.13922662]
[1733250288603,8.05456663,3573.5,3573.4,0.13922662]
[1733250289105,8.05456663,3573.5,3573.4,7.71e-06]
[1733250289310,9.22736707,3573.5,3573.4,7.71e-06]
[1733250289909,7.50977847,3573.5,3573.4,7.71e-06]
[1733250290108,9.22543852,3573.5,3573.4,7.71e-06]
[1733250290306,9.81287847,3573.5,3573.4,7.71e-06]
[1733250291205,9.22427377,3573.5,3573.4,7.71e-06]
[1733250291413,8.0536778,3573.5,3573.4,7.71e-06]
[1733250291621,7.6346939,3573.5,3573.4,7.71e-06]
[1733250291800,8.80530301,3573.5,3573.4,7.71e-06]
[1733250292202,7.6346939,3573.5,3573.4,7.71e-06]
[1733250293614,10.45362116,3573.5,3573.4,7.71e-06]
[1733250294201,10.45362116,3573.5,3571.0,4.23]
[1733250294202,2.7993,3572.4,3571.4,0.7852]
[1733250294401,0.0334143,3572.3,3571.4,0.7852]
[1733250295422,2.81998625,3571.2,3571.0,1.23]
[1733250295751,2.83311756,3571.1,3571.0,1.23]
[1733250295904,6.38311756,3571.1,3571.0,1.23]
[1733250296104,6.59165867,3571.1,3571.0,1.23]
[1733250296305,10.20468499,3571.1,3571.0,1.23]
[1733250296721,10.41296369,3571.1,3571.0,1.23]
[1733250298113,10.20468499,3571.1,3571.0,1.23]
[1733250298720,10.49630778,3571.1,3571.0,1.23]
[1733250298934,10.70420882,3571.1,3571.0,1.23]
[1733250300748,10.70408324,3571.1,3571.0,1.23]
[1733250301658,10.49630778,3571.1,3571.0,1.23]
[1733250302332,7.90375943,3571.1,3571.0,1.23]
[1733250302542,1.32607153,3571.1,3571.0,1.23]
[1733250302782,0.32449035,3571.1,3571.0,1.23]
[1733250311479,0.53199493,3571.1,3571.0,1.23]
[1733250313339,0.32449035,3571.1,3571.0,1.23]
[1733250313584,0.53270063,3571.1,3571.0,1.23]
[1733250314164,1.12609992,3571.1,3571.0,1.23]
[1733250317055,1.12666893,3571.1,3571.0,1.23]
[1733250317261,4.32120996,3571.1,3571.0,1.23]
[1733250317465,4.87120996,3571.1,3571.0,1.23]
[1733250317680,5.14958146,3571.1,3571.0,1.23]
[1733250318197,4.87120996,3571.1,3571.0,1.23]
[1733250320196,2.07095996,3571.1,3571.0,1.23]
[1733250320605,2.07202159,3571.1,3571.0,1.23]
[1733250321275,4.87227159,3571.1,3571.0,1.23]
[1733250322077,4.06741224,3571.1,3571.0,1.23]
[1733250322278,4.87313535,3571.1,3571.0,1.23]
[1733250324996,2.07288535,3571.1,3571.0,1.23]
[1733250325203,2.07288535,3571.1,3571.0,0.72536927]
[1733250326918,1.73803938,3571.1,3571.0,0.72536927]
[1733250327512,4.53828938,3571.1,3571.0,0.72536927]
[1733250327841,4.53898019,3571.1,3571.0,0.72536927]
[1733250330543,1.73873019,3571.1,3571.0,0.72536927]
[1733250330753,1.18873019,3571.1,3571.0,0.72536927]
[1733250330902,3.98898019,3571.1,3571.0,0.72536927]
[1733250332327,1.18873019,3571.1,3571.0,0.72536927]
[1733250333608,0.71716224,3571.1,3571.0,0.72536927]
[1733250334722,0.92703653,3571.1,3571.0,0.72536927]
[1733250334903,1.18937302,3571.1,3571.0,0.72536927]
[1733250337657,0.79670113,3571.1,3571.0,0.72536927]
[1733250341962,0.53435824,3571.1,3571.0,0.72536927]
[1733250342123,0.79671474,3571.1,3571.0,0.72536927]
[1733250346936,0.79677325,3571.1,3571.0,0.72536927]
[1733250347650,1.1328264,3571.1,3571.0,0.72536927]
[1733250349460,1.1328264,3571.1,3571.0,1.54086927]
[1733250354900,1.1328264,3571.1,3571.0,1.54086927]
[1733250357394,1.1328264,3571.1,3571.0,4.34119927]
[1733250357602,0.84120361,3571.1,3571.0,4.34119927]
[1733250357906,0.84120361,3571.1,3571.0,5.19216468]
[1733250358072,0.4722829,3571.1,3571.0,5.19216468]
[1733250358399,0.20986789,3571.1,3571.0,5.19216468]
[1733250358621,0.33599214,3571.4,3571.3,2.8001]
[1733250358894,0.28999248,3571.6,3571.5,3.58964]
[1733250359098,1.09809436,3571.6,3571.5,3.58964]
[1733250360599,1.09809436,3571.6,3571.5,4.228618]
[1733250360798,0.47226733,3571.6,3571.5,4.228618]
[1733250361600,0.50386355,3571.6,3571.5,4.228618]
[1733250362405,0.47226733,3571.6,3571.5,4.228618]
[1733250363259,0.20989659,3571.6,3571.5,4.228618]
[1733250364081,0.33555225,3572.1,3571.7,2.79977]
[1733250364261,0.83869838,3572.0,3571.7,2.79977]
[1733250364459,0.47151213,3571.9,3571.8,0.7662]
[1733250364694,0.50313437,3571.9,3571.8,3.5659]
[1733250364897,0.50313437,3571.9,3571.8,0.7662]
[1733250365982,0.50313437,3571.9,3571.8,3.5659]
[1733250367174,0.50313437,3571.9,3571.8,0.7662]
[1733250367382,0.71922528,3571.9,3571.4,2.79995]
[1733250367595,0.47151213,3571.8,3571.4,2.79995]
[1733250367802,0.209591,3571.7,3571.4,2.79995]
[1733250368009,0.03160996,3571.7,3571.4,2.79995]
[1733250368319,1.36793482,3572.0,3571.5,2.79993]
[1733250368623,0.03167639,3571.6,3571.1,3.8301]
[1733250368920,0.47116252,3571.8,3571.4,2.80001]
[1733250369074,0.03166463,3571.5,3571.4,2.80001]
[1733250369274,0.47116334,3572.0,3571.4,2.80001]
[1733250369471,0.50286575,3571.9,3571.8,2.7997]
[1733250369677,0.20940607,3571.9,3571.8,3.6298]
[1733250369923,0.24110385,3571.9,3571.8,3.6298]
[1733250370233,0.03169778,3571.9,3571.8,3.6298]
[1733250370516,0.2093432,3572.0,3571.8,3.6298]
[1733250370712,0.26168093,3572.1,3571.8,3.6298]
[1733250370933,0.20934394,3572.0,3571.8,3.6298]
[1733250371080,0.03166798,3571.9,3571.8,3.5798]
[1733250371276,0.20934349,3572.0,3571.8,3.5798]
[1733250371509,0.28983994,3572.2,3571.8,3.5798]
[1733250371510,0.03167218,3571.9,3571.8,3.5798]
[1733250371677,0.20931715,3572.0,3571.9,2.79963]
[1733250371889,0.24099796,3572.0,3571.9,2.79963]
[1733250372216,0.03168081,3572.0,3571.9,2.79963]
[1733250372604,0.28983994,3572.2,3571.9,2.79963]
[1733250372927,0.28983994,3572.2,3572.1,2.79947]
[1733250373081,0.28983994,3572.2,3572.1,3.59707]
[1733250373427,0.47085452,3572.7,3572.1,3.59707]
[1733250373718,0.47085452,3572.6,3572.5,3.60339]
[1733250373921,0.2894108,3572.7,3572.5,0.8043]
[1733250374216,0.47077741,3573.0,3572.5,1.30145948]
[1733250374419,0.20918919,3572.9,3572.7,2.79897]
[1733250374723,0.20918919,3573.0,3572.7,2.79897]
[1733250374904,0.20918919,3572.9,3572.7,2.79897]
[1733250375216,0.20918919,3573.1,3572.9,0.8043]
[1733250375418,0.20918919,3573.0,3572.9,0.8043]
[1733250375622,0.20918919,3573.1,3572.9,0.8043]
[1733250375926,0.20918919,3573.0,3572.9,0.8043]
[1733250376216,0.03120608,3573.0,3572.9,0.8043]
[1733250376522,0.03120608,3573.0,3572.9,3.60314]
[1733250376891,0.20895035,3573.2,3573.0,2.79875]
[1733250377099,0.20895035,3573.3,3573.0,2.79875]
[1733250377293,0.03131371,3573.2,3573.0,2.79875]
[1733250377802,0.03131371,3573.2,3572.9,1.164614]
[1733250377994,0.03131371,3573.2,3572.9,0.8043]
[1733250378720,0.24026406,3573.2,3572.9,0.8043]
[1733250378882,0.03131371,3573.2,3572.9,0.8043]
[1733250379085,0.24026406,3573.2,3572.9,0.8043]
[1733250379304,1.36793482,3573.0,3572.1,0.7559]
[1733250379507,1.36793482,3572.6,3572.1,0.7559]
[1733250379827,0.16081989,3572.9,3572.1,0.7559]
[1733250379828,0.20895035,3572.8,3572.1,0.7559]
[1733250380012,0.03112055,3572.5,3572.1,0.7559]
[1733250380225,0.20895035,3572.7,3572.1,0.7559]
[1733250380530,0.47006513,3572.8,3572.1,0.7559]
[1733250380680,0.24007591,3572.7,3572.1,0.7559]
[1733250381537,0.20895035,3572.6,3572.1,0.7559]
[1733250381695,0.03110206,3572.5,3572.1,0.7559]
[1733250382082,0.20895035,3572.6,3572.1,0.7559]
[1733250382324,0.03093653,3572.5,3572.1,0.7559]
[1733250382526,0.20895035,3572.6,3572.1,0.7559]
[1733250382824,0.23988688,3572.5,3572.1,3.55536]
[1733250382977,0.03093653,3572.5,3572.2,2.79938]
[1733250383181,0.23988688,3572.5,3572.1,0.7559]
[1733250383427,0.03093653,3572.5,3572.1,0.7559]
[1733250383720,0.20895035,3572.4,3572.1,0.7559]
[1733250383879,0.03093653,3572.5,3572.1,0.7559]
[1733250384081,0.20895035,3572.4,3572.1,0.7559]
[1733250384279,0.47006513,3572.6,3572.1,0.7559]
[1733250384521,0.47006513,3572.5,3572.1,0.7559]
[1733250384723,0.20895035,3572.4,3572.1,0.7559]
[1733250384924,0.03094929,3572.4,3572.1,0.7559]
[1733250385227,0.47006513,3572.6,3572.1,0.7559]
[1733250385430,0.23988327,3572.3,3572.1,0.7559]
[1733250385645,0.47006513,3572.4,3572.1,0.7559]
[1733250385838,0.03090037,3572.2,3572.1,0.7559]
[1733250385981,0.47006513,3572.7,3572.1,0.7559]
[1733250386182,4.16673482,3573.0,3572.1,0.7559]
[1733250386183,0.5010125,3572.6,3572.1,0.7559]
[1733250386402,0.47006513,3572.5,3572.1,0.7559]
[1733250386726,0.47006513,3572.4,3572.1,3.55534]
[1733250387017,0.20895035,3572.3,3572.2,2.79936]
[1733250387916,0.20895035,3572.3,3572.1,0.7559]
[1733250388226,0.33432056,3572.9,3572.1,0.7559]
[1733250388227,0.20937421,3572.2,3572.1,0.7559]
[1733250390324,0.20937421,3572.2,3572.0,2.79952]
[1733250390524,0.33432056,3572.7,3572.0,2.79952]
[1733250390684,0.03090203,3572.1,3572.0,2.79952]
[1733250390884,0.59613153,3572.5,3572.0,2.79952]
[1733250391188,0.50219748,3572.4,3572.0,2.79952]
[1733250391408,0.4712602,3572.3,3572.0,2.79952]
[1733250391606,0.4712602,3572.2,3572.0,2.79952]
[1733250391807,0.03091378,3572.2,3572.0,2.79952]
[1733250391993,0.33432056,3572.8,3572.0,2.79952]
[1733250392315,1.31569617,3572.7,3572.0,2.79952]
[1733250392526,0.80563609,3572.6,3572.0,2.79952]
[1733250392697,0.80563609,3572.5,3572.0,2.79952]
[1733250392893,1.36793482,3572.3,3571.8,0.8172]
[1733250393125,2.79973,3571.8,3571.3,0.8027]
[1733250393440,0.50223303,3571.7,3571.1,2.80023]
[1733250393629,0.47139189,3571.6,3571.1,2.80023]
[1733250393783,0.03084114,3571.7,3571.1,2.80023]
[1733250393784,0.20947357,3571.5,3571.1,2.80023]
[1733250393984,0.03078966,3571.4,3571.0,1.52806927]
[1733250394210,0.59625624,3571.8,3571.2,2.80017]
[1733250394411,0.47144515,3571.7,3571.2,2.80017]
[1733250394631,0.47144515,3571.6,3571.2,2.80017]
[1733250394836,0.20953118,3571.5,3571.2,2.80017]
[1733250395001,0.0311803,3571.5,3571.2,2.80017]
[1733250395614,0.26189397,3571.6,3571.2,2.80017]
[1733250395804,2.79949,3572.1,3571.2,2.80017]
[1733250395805,0.03116855,3571.4,3571.2,2.80017]
[1733250396002,0.59621561,3571.9,3571.2,2.80017]
[1733250396206,0.50262673,3571.8,3571.2,2.80017]
[1733250396442,0.47141116,3571.7,3571.0,1.52806927]
[1733250396731,0.50155492,3571.6,3571.0,0.72536927]
[1733250396932,0.47141116,3571.5,3571.0,0.72536927]
[1733250397136,0.50139819,3571.4,3571.0,0.72536927]
[1733250397442,0.47141116,3571.3,3571.0,0.72536927]
[1733250397628,0.20951611,3571.2,3571.0,0.72536927]
[1733250397837,0.02955149,3571.2,3571.0,3.52563927]
[1733250398147,0.26183697,3571.5,3571.0,3.52563927]
[1733250398305,0.23889729,3571.4,3571.0,3.52563927]
[1733250398510,0.02947092,3571.4,3571.0,3.52563927]
[1733250398706,0.26178007,3571.6,3571.0,3.52563927]
[1733250398921,0.50069149,3571.5,3571.0,0.72536927]
[1733250399247,0.20942874,3571.4,3571.0,0.72536927]
[1733250399419,0.26174475,3571.4,3571.0,0.72536927]
[1733250399619,0.02945916,3571.3,3571.0,3.52568927]
[1733250399944,0.02945916,3571.3,3571.1,0.8032]
[1733250400121,1.36793482,3572.1,3571.1,0.8032]
[1733250400122,0.47114097,3571.6,3571.2,2.80017]
[1733250400446,0.47103878,3571.8,3571.6,2.7998]
[1733250400648,0.26169714,3571.8,3571.6,2.7998]
[1733250400945,0.5960177,3572.4,3571.6,2.7998]
[1733250401145,0.80534731,3572.3,3571.6,2.7998]
[1733250401361,0.20932961,3572.2,3571.7,2.79977]
[1733250401645,0.50069882,3572.1,3571.7,2.79977]
[1733250401853,0.47102675,3572.0,3571.9,3.58433]
[1733250402146,0.02967207,3572.1,3571.9,3.58433]
[1733250402356,0.47099575,3572.4,3572.0,2.79953]
[1733250402537,0.47099575,3572.3,3572.0,2.79953]
[1733250402772,0.47099575,3572.2,3572.0,2.79953]
[1733250403092,0.28984013,3572.9,3572.0,2.79953]
[1733250403093,0.20929869,3572.1,3572.0,2.79953]
[1733250403681,0.26169714,3572.2,3572.0,2.79953]
[1733250403990,0.59594882,3572.7,3572.0,2.79953]
[1733250404168,0.83513168,3572.6,3572.0,2.79953]
[1733250404485,0.47093044,3572.5,3572.1,2.7994]
[1733250404680,0.47093044,3572.4,3572.1,2.7994]
[1733250404854,0.2093187,3572.3,3572.2,2.79933]
[1733250405057,0.47096708,3572.3,3572.2,2.79933]
[1733250405269,0.26166516,3572.3,3572.2,2.79933]
[1733250405469,0.47099729,3572.3,3572.2,2.79933]
[1733250405655,0.20933213,3572.3,3572.2,3.962033]
[1733250406075,0.59660952,3572.8,3572.2,1.162703]
[1733250406441,0.83604027,3572.7,3572.4,2.79923]
[1733250406607,0.26167811,3572.6,3572.4,2.79923]
[1733250406894,0.50108536,3572.5,3572.4,2.79923]
[1733250407446,0.47103978,3572.5,3572.4,2.79923]
[1733250408597,0.47129627,3572.5,3572.4,2.79923]
[1733250410263,0.50143986,3572.5,3572.4,2.79923]
[1733250410605,0.33514401,3573.2,3572.4,3.44232607]
[1733250410777,0.29104871,3573.1,3572.7,2.79897]
[1733250410992,0.83566506,3573.1,3572.7,2.79897]
[1733250411169,0.83566506,3573.1,3572.8,2.79892]
[1733250411370,0.33514401,3573.0,3572.9,3.5836]
[1733250411600,0.57381045,3573.0,3572.9,3.5836]
[1733250411811,0.57381045,3573.0,3572.9,0.7848]
[1733250412015,0.57381045,3573.0,3572.7,2.79898]
[1733250413478,0.0291941,3573.0,3572.7,2.79898]
[1733250413682,0.47125248,3572.9,3572.7,2.79898]
[1733250413990,0.2094457,3572.8,3572.7,2.79898]
[1733250414321,0.2094457,3572.8,3572.7,3.157358]
[1733250417419,0.47106299,3573.0,3572.7,0.358378]
[1733250417621,3.29002419,3573.7,3572.6,0.7848]
[1733250417622,0.47106299,3572.9,3572.8,2.79891]
[1733250417791,0.2387912,3572.9,3572.6,0.7848]
[1733250417999,0.47103557,3572.8,3572.7,2.79898]
[1733250418316,0.2094457,3572.8,3572.7,2.79898]
[1733250418489,0.47103557,3573.0,3572.7,2.79898]
[1733250418689,0.2094457,3572.9,3572.8,2.7989]
[1733250418922,0.23879539,3572.9,3572.8,2.7989]
[1733250419125,0.2094457,3572.9,3572.8,2.7989]
[1733250420322,0.02935012,3572.9,3572.8,3.98567]
[1733250420694,0.47069779,3573.4,3572.8,3.98567]
[1733250421022,0.50009489,3573.3,3572.8,3.98567]
[1733250421325,0.20916257,3573.2,3572.8,3.98567]
[1733250421556,0.0293971,3573.3,3573.2,2.79861]
[1733250421830,0.20916257,3573.3,3572.4,3.0]
[1733250422033,0.47069779,3573.2,3572.6,2.79904]
[1733250422190,0.20916257,3573.1,3573.0,2.79876]
[1733250422530,0.47069779,3573.5,3573.0,2.79876]
[1733250422827,0.50088806,3573.4,3572.8,2.79889]
[1733250423040,0.47069779,3573.3,3573.0,2.79874]
[1733250423191,0.20916257,3573.2,3573.0,2.79874]
[1733250423485,0.20916257,3573.3,3573.1,0.7962]
[1733250423690,0.47069779,3573.6,3573.1,0.7962]
[1733250423886,0.0303045,3573.2,3573.1,3.59489]
[1733250424090,0.26129274,3573.8,3573.1,3.59489]
[1733250424333,0.47033589,3573.7,3573.1,3.59489]
[1733250424537,0.2613017,3573.6,3573.1,3.59489]
[1733250424690,0.47033589,3573.5,3573.1,3.59489]
[1733250424891,0.47033589,3573.4,3573.1,3.59489]
[1733250425099,0.2613017,3573.3,3573.1,3.59489]
[1733250425340,0.03030793,3573.3,3573.2,2.79861]
[1733250425835,0.26126711,3573.7,3573.6,2.79829]
[1733250426037,0.4703013,3573.9,3573.7,2.7982]
[1733250426331,0.28985247,3574.2,3573.7,2.7982]
[1733250426332,0.4703013,3574.1,3573.7,2.7982]
[1733250426538,0.4703013,3574.0,3573.8,2.79813]
[1733250426830,0.26126711,3573.9,3573.8,2.79813]
[1733250427043,0.50069003,3574.0,3573.8,2.79813]
[1733250427196,0.26126711,3573.9,3573.8,2.79813]
[1733250427533,0.26126711,3573.9,3573.3,2.19614194]
[1733250427534,0.03037699,3573.9,3573.4,2.79845]
[1733250427833,0.4703013,3573.9,3573.6,2.79826]
[1733250428038,0.4703013,3574.1,3573.7,2.79821]
[1733250428339,0.03036525,3573.8,3573.7,2.79821]
[1733250428555,0.26126711,3573.9,3573.5,0.02798047]
[1733250428695,0.20903419,3573.9,3573.8,2.79814]
[1733250428894,0.47022866,3573.9,3573.6,0.8136]
[1733250429093,0.26119447,3573.8,3573.6,0.8136]
[1733250429306,0.26119447,3573.7,3573.6,0.8136]
[1733250429596,0.26119447,3573.7,3573.3,0.8136]
[1733250429795,3.08768247,3574.2,3573.2,2.79858]
[1733250429796,0.29173723,3573.6,3573.2,2.79858]
[1733250429992,0.26119447,3573.5,3573.2,2.79858]
[1733250430196,0.2917298,3573.4,3573.0,0.8136]
[1733250430398,0.26140437,3573.3,3573.0,0.8136]
[1733250430607,0.03040015,3573.2,3573.0,3.61236]
[1733250430815,0.4705253,3573.6,3573.3,2.79851]
[1733250431010,2.79775,3574.3,3573.3,2.79851]
[1733250431011,0.47051757,3573.5,3573.3,2.79851]
[1733250431211,0.26140186,3573.4,3573.3,2.79851]
[1733250431857,0.20916006,3573.8,3573.0,3.973546]
[1733250432008,0.33458351,3574.1,3573.4,2.79845]
[1733250432009,0.47061033,3573.7,3573.4,2.79845]
[1733250432207,0.47061033,3573.6,3573.4,2.79845]
[1733250432428,0.26145027,3573.5,3573.4,2.79845]
[1733250432707,0.47062755,3573.5,3573.0,3.973566]
[1733250433016,4.75792733,3574.9,3573.1,2.79868]
[1733250433017,0.2918924,3573.4,3573.1,2.79868]
[1733250433217,0.62709678,3573.7,3573.1,3.09173376]
[1733250433398,3.08770247,3574.2,3573.1,3.09173376]
[1733250433399,0.50117373,3573.6,3573.1,3.09173376]
[1733250433602,0.47070811,3573.5,3573.1,3.09173376]
[1733250433907,0.29196024,3573.4,3573.1,3.09173376]
[1733250434108,0.03043794,3573.4,3573.1,3.09173376]
[1733250434313,0.26158522,3573.3,3573.1,3.09173376]
[1733250434616,0.41791097,3573.8,3573.1,3.09173376]
[1733250434820,0.20926174,3573.6,3573.1,2.79868]
[1733250435016,0.50023282,3573.5,3573.1,2.79868]
[1733250435217,0.2615772,3573.4,3573.1,2.79868]
[1733250435432,0.02936577,3573.3,3573.1,2.79868]
[1733250435745,0.02936577,3573.3,3573.0,0.8136]
[1733250436043,0.20929137,3573.5,3573.0,0.8136]
[1733250436348,0.47095925,3573.4,3572.6,0.825]
[1733250436504,0.26162434,3573.3,3572.7,2.79899]
[1733250436707,0.02933084,3573.4,3572.7,2.79899]
[1733250437008,0.29101217,3573.3,3572.7,2.79899]
[1733250437240,0.26166997,3573.2,3572.7,2.79899]
[1733250437439,0.0293422,3573.3,3572.7,2.79899]
[1733250437753,0.02931871,3573.1,3572.9,2.79881]
[1733250437906,0.02930272,3573.2,3572.9,2.79881]
[1733250438110,0.62811766,3573.5,3572.9,2.79881]